fUST/lending_fUST_20250627
["ID","MTS","AMOUNT","RATE_DAILY","PERIOD"]
[368131459,1751034651134,-546.13404743,0.0002329,4]
[368131461,1751034651144,-546.13404743,0.0002329,4]
[368131463,1751034651153,-546.13404743,0.0002329,4]
[368131465,1751034651162,-546.13404743,0.0002329,4]
[368131467,1751034651173,-546.13404743,0.0002329,4]
[368131469,1751034651183,-546.13404743,0.0002329,4]
[368131471,1751034651192,-546.13404743,0.0002329,4]
[368131473,1751034651202,-546.13404743,0.0002329,4]
[368131475,1751034651211,-546.13404743,0.0002329,4]
[368131488,1751034651320,-546.13404743,0.0002329,4]
[368131490,1751034651331,-546.13404743,0.0002329,4]
[368131492,1751034651341,-546.13404743,0.0002329,4]
[368131494,1751034651350,-546.13404743,0.0002329,4]
[368131496,1751034651360,-546.13404743,0.0002329,4]
[368131498,1751034651369,-546.13404743,0.0002329,4]
[368131500,1751034651378,-546.13404743,0.0002329,4]
[368131502,1751034651388,-546.13404743,0.0002329,4]
[368131504,1751034651397,-546.13,0.0002329,4]
[368131506,1751034651406,-1274.31277733,0.0002329,4]
[368131508,1751034651415,-1274.31277733,0.0002329,4]
[368131510,1751034651425,-1274.31277733,0.0002329,4]
[368131512,1751034651434,-1274.31277733,0.0002329,4]
[368131514,1751034651444,-1274.31277733,0.0002329,4]
[368131516,1751034651453,-1274.31277733,0.0002329,4]
[368131518,1751034651462,-1274.31277733,0.0002329,4]
[368131520,1751034651471,-1274.31277733,0.0002329,4]
[368131522,1751034651481,-1274.31277733,0.0002329,4]
[368131524,1751034651491,-1274.31277733,0.0002329,4]
[368131526,1751034651500,-1274.31277733,0.0002329,4]
[368131528,1751034651510,-1274.31277733,0.0002329,4]
[368131530,1751034651521,-1274.31277733,0.0002329,4]
[368131532,1751034651531,-1274.31277733,0.0002329,4]
[368131534,1751034651541,-1274.31277733,0.0002329,4]
[368131536,1751034651553,-1274.31277733,0.0002329,4]
[368131538,1751034651562,-1274.31277733,0.0002329,4]
[368131540,1751034651572,-1274.31277733,0.0002329,4]
[368131543,1751034651582,-1274.31277733,0.0002329,4]
[368131545,1751034651592,-1274.31,0.0002329,4]
[368131547,1751034651601,-150.0,0.0002329,4]
[368131548,1751034651610,-150.0,0.0002329,4]
[368131551,1751034651620,-150.0,0.0002329,4]
[368131553,1751034651630,-150.0,0.0002329,4]
[368131555,1751034651639,-150.0,0.0002329,4]
[368131556,1751034651649,-150.0,0.0002329,4]
[368131558,1751034651658,-150.0,0.0002329,4]
[368131560,1751034651667,-150.0,0.0002329,4]
[368131563,1751034651676,-150.0,0.0002329,4]
[368131564,1751034651685,-150.0,0.0002329,4]
[368131566,1751034651694,-150.0,0.0002329,4]
[368131569,1751034651703,-150.0,0.0002329,4]
[368131571,1751034651712,-150.0,0.0002329,4]
[368131573,1751034651723,-150.0,0.0002329,4]
[368131575,1751034651732,-150.0,0.0002329,4]
[368131577,1751034651741,-150.0,0.0002329,4]
[368131579,1751034651750,-150.0,0.0002329,4]
[368131581,1751034651759,-150.0,0.0002329,4]
[368131582,1751034651769,-150.0,0.0002329,4]
[368131584,1751034651778,-150.0,0.0002329,4]
[368131586,1751034651787,-350.0,0.0002329,4]
[368131589,1751034651796,-350.0,0.0002329,4]
[368131591,1751034651805,-350.0,0.0002329,4]
[368131593,1751034651814,-350.0,0.0002329,4]
[368131595,1751034651823,-350.0,0.0002329,4]
[368131597,1751034651832,-350.0,0.0002329,4]
[368131598,1751034651841,-350.0,0.0002329,4]
[368131601,1751034651850,-350.0,0.0002329,4]
[368131603,1751034651859,-350.0,0.0002329,4]
[368131605,1751034651870,-350.0,0.0002329,4]
[368131607,1751034651879,-350.0,0.0002329,4]
[368131609,1751034651888,-350.0,0.0002329,4]
[368131611,1751034651897,-350.0,0.0002329,4]
[368131612,1751034651906,-350.0,0.0002329,4]
[368131615,1751034651916,-350.0,0.0002329,4]
[368131617,1751034651925,-350.0,0.0002329,4]
[368131619,1751034651934,-350.0,0.0002329,4]
[368131621,1751034651943,-350.0,0.0002329,4]
[368131623,1751034651952,-350.0,0.0002329,4]
[368131624,1751034651962,-350.0,0.0002329,4]
[368131627,1751034651971,-298.10111853,0.0002329,4]
[368131629,1751034651981,-298.10111853,0.0002329,4]
[368131631,1751034651990,-298.10111853,0.0002329,4]
[368131632,1751034652000,-298.10111853,0.0002329,4]
[368131634,1751034652009,-298.10111853,0.0002329,4]
[368131636,1751034652022,-298.10111853,0.0002329,4]
[368131638,1751034652031,-298.10111853,0.0002329,4]
[368131640,1751034652044,-298.10111853,0.0002329,4]
[368131642,1751034652054,-298.10111853,0.0002329,4]
[368131645,1751034652064,-298.10111853,0.0002329,4]
[368131646,1751034652074,-298.10111853,0.0002329,4]
[368131648,1751034652084,-298.10111853,0.0002329,4]
[368131650,1751034652095,-298.10111853,0.0002329,4]
[368131652,1751034652105,-298.10111853,0.0002329,4]
[368131654,1751034652114,-298.10111853,0.0002329,4]
[368131656,1751034652123,-298.10111853,0.0002329,4]
[368131658,1751034652133,-298.10111853,0.0002329,4]
[368131660,1751034652142,-298.10111853,0.0002329,4]
[368131663,1751034652152,-298.10111853,0.0002329,4]
[368131665,1751034652162,-298.1,0.0002329,4]
[368131667,1751034652172,-695.56927658,0.0002329,4]
[368131668,1751034652181,-695.56927658,0.0002329,4]
[368131670,1751034652191,-695.56927658,0.0002329,4]
[368131673,1751034652200,-695.56927658,0.0002329,4]
[368131675,1751034652209,-695.56927658,0.0002329,4]
[368131677,1751034652219,-695.56927658,0.0002329,4]
[368131679,1751034652228,-695.56927658,0.0002329,4]
[368131680,1751034652237,-695.56927658,0.0002329,4]
[368131683,1751034652246,-695.56927658,0.0002329,4]
[368131685,1751034652256,-695.56927658,0.0002329,4]
[368131687,1751034652267,-695.56927658,0.0002329,4]
[368131689,1751034652277,-695.56927658,0.0002329,4]
[368131691,1751034652286,-695.56927658,0.0002329,4]
[368131692,1751034652295,-695.56927658,0.0002329,4]
[368131695,1751034652304,-695.56927658,0.0002329,4]
[368131697,1751034652314,-695.56927658,0.0002329,4]
[368131699,1751034652323,-695.56927658,0.0002329,4]
[368131701,1751034652332,-695.56927658,0.0002329,4]
[368131703,1751034652342,-695.56927658,0.0002329,4]
[368131705,1751034652351,-695.56,0.0002329,4]
[368131707,1751034652360,-151.0,0.00023315,2]
[368131709,1751034652369,-1600.0,0.00023322,2]
[368131711,1751034652378,-151.0,0.00023343,2]
[368131712,1751034652387,-356.8872515,0.0002337,2]
[368131714,1751034652396,-217.90292315,0.0002337,2]
[368131716,1751034652405,-151.0,0.00023375,6]
[368131718,1751034652414,-5997.82890431,0.00023417,9]
[368131720,1751034652423,-1600.0,0.00023427,2]
[368131722,1751034652432,-63.71690873,0.00023436,2]
[368131739,1751034652579,-1018.8,0.00023436,2]
[368131741,1751034652592,-1417.48309127,0.00023436,2]
[368131743,1751034652601,-900.0,0.00023498,2]
[368131745,1751034652612,-1000.0,0.000235,2]
[368131747,1751034652622,-1600.0,0.00023505,2]
[368131749,1751034652632,-1500.0,0.00023516,2]
[368131751,1751034652642,-1500.0,0.00023516,2]
[368131753,1751034652652,-1500.0,0.00023516,2]
[368131755,1751034652661,-1500.0,0.00023516,2]
[368131757,1751034652670,-1600.0,0.00023521,2]
[368131759,1751034652679,-194.39251329,0.00023546,2]
[368131761,1751034652687,-460.0,0.00023561,2]
[368131763,1751034652697,-1197.69,0.00023561,2]
[368131765,1751034652706,-526.86,0.00023561,2]
[368131767,1751034652716,-460.0,0.00023561,2]
[368131769,1751034652725,-578.62,0.00023561,2]
[368131771,1751034652734,-851.03,0.00023561,2]
[368131773,1751034652743,-1948.1,0.00023561,2]
[368131775,1751034652753,-460.0,0.00023561,2]
[368131777,1751034652762,-460.0,0.00023561,2]
[368131779,1751034652774,-697.08,0.00023561,2]
[368131781,1751034652783,-528.92,0.00023561,2]
[368131783,1751034652792,-316.21,0.00023561,2]
[368131785,1751034652801,-316.21,0.00023561,2]
[368131787,1751034652811,-316.21,0.00023561,2]
[368131789,1751034652819,-316.21,0.00023561,2]
[368131791,1751034652829,-316.21,0.00023561,2]
[368131793,1751034652838,-316.21,0.00023561,2]
[368131795,1751034652847,-316.21,0.00023561,2]
[368131797,1751034652856,-316.21,0.00023561,2]
[368131799,1751034652866,-316.21,0.00023561,2]
[368131801,1751034652875,-316.21,0.00023561,2]
[368131803,1751034652884,-316.21,0.00023561,2]
[368131805,1751034652894,-316.21,0.00023561,2]
[368131807,1751034652904,-316.21,0.00023561,2]
[368131809,1751034652913,-316.21,0.00023561,2]
[368131811,1751034652923,-316.21,0.00023561,2]
[368131813,1751034652933,-846.42,0.00023561,2]
[368131816,1751034652942,-316.21,0.00023561,2]
[368131818,1751034652952,-316.21,0.00023561,2]
[368131820,1751034652961,-1963.31,0.00023561,2]
[368131822,1751034652971,-460.0,0.00023561,2]
[368131824,1751034652980,-857.96,0.00023561,2]
[368131826,1751034652989,-1356.71,0.00023561,2]
[368131828,1751034652998,-460.0,0.00023561,2]
[368131830,1751034653007,-816.52,0.00023561,2]
[368131832,1751034653018,-460.0,0.00023561,2]
[368131834,1751034653027,-1640.15,0.00023561,2]
[368131836,1751034653037,-474.85,0.00023561,2]
[368131838,1751034653046,-460.0,0.00023561,2]
[368131840,1751034653056,-1671.8,0.00023561,2]
[368131842,1751034653065,-306.0,0.00023584,2]
[368131844,1751034653076,-1500.0,0.00023591,2]
[368131846,1751034653086,-1500.0,0.00023591,2]
[368131847,1751034653096,-1500.0,0.00023591,2]
[368131849,1751034653106,-1500.0,0.00023591,2]
[368131851,1751034653115,-900.0,0.00023592,2]
[368131853,1751034653124,-34981.49626511,0.000236,5]
[368131855,1751034653133,-500.0,0.00023617,2]
[368131857,1751034653142,-5997.82890431,0.00023624,9]
[368131859,1751034653151,-827.529621,0.00023626,4]
[368131861,1751034653161,-1600.0,0.00023631,2]
[368131863,1751034653170,-900.0,0.00023644,2]
[368131865,1751034653179,-600.0,0.00023671,2]
[368131867,1751034653189,-600.0,0.00023671,2]
[368131869,1751034653198,-600.0,0.00023671,2]
[368131871,1751034653208,-600.0,0.00023671,2]
[368131873,1751034653218,-600.0,0.00023671,2]
[368131875,1751034653227,-600.0,0.00023671,2]
[368131877,1751034653237,-600.0,0.00023671,2]
[368131879,1751034653246,-200.5,0.00023671,2]
[368131881,1751034653255,-600.0,0.00023671,2]
[368131883,1751034653264,-600.0,0.00023671,2]
[368131885,1751034653277,-600.0,0.00023671,2]
[368131887,1751034653286,-600.0,0.00023671,2]
[368131889,1751034653294,-240.3,0.00023671,2]
[368131891,1751034653304,-600.0,0.00023671,2]
[368131893,1751034653312,-600.0,0.00023671,2]
[368131895,1751034653322,-560.2,0.00023671,2]
[368131897,1751034653331,-375.0,0.00023671,2]
[368131899,1751034653340,-225.0,0.00023671,2]
[368131901,1751034653350,-460.0,0.00023671,2]
[368131903,1751034653359,-460.0,0.00023671,2]
[368131904,1751034653368,-460.0,0.00023671,2]
[368131906,1751034653377,-460.0,0.00023671,2]
[368131908,1751034653387,-460.0,0.00023671,2]
[368131910,1751034653396,-334.12987993,0.00023671,2]
[368131912,1751034653405,-154.06460479,0.00023671,2]
[368131914,1751034653415,-151.0,0.00023679,6]
[368131916,1751034653424,-900.0,0.00023679,2]
[368131918,1751034653434,-151.0,0.000237,10]
[368131920,1751034653443,-1400.0,0.00023704,2]
[368131922,1751034653453,-1600.0,0.00023704,2]
[368131924,1751034653462,-1600.0,0.00023706,2]
[368131926,1751034653471,-1500.0,0.00023732,2]
[368131928,1751034653480,-988.8783625,0.00023753,3]
[368131940,1751034653489,-900.0,0.00023769,2]
[368131943,1751034653603,-500.0,0.000238,9]
[368131945,1751034653614,-9720.04302628,0.000238,2]
[368131947,1751034653625,-900.0,0.00023804,2]
[368131948,1751034653634,-499.3,0.00023817,2]
[368131950,1751034653644,-5997.82890431,0.00023831,10]
[368131952,1751034653653,-280.77491498,0.00023835,2]
[368131955,1751034653663,-1197.69,0.00023835,2]
[368131956,1751034653672,-526.86,0.00023835,2]
[368131959,1751034653682,-460.0,0.00023835,2]
[368131960,1751034653691,-578.62,0.00023835,2]
[368131962,1751034653700,-851.03,0.00023835,2]
[368131964,1751034653710,-1948.1,0.00023835,2]
[368131966,1751034653720,-460.0,0.00023835,2]
[368131968,1751034653729,-460.0,0.00023835,2]
[368131970,1751034653739,-697.08,0.00023835,2]
[368131972,1751034653748,-528.92,0.00023835,2]
[368131974,1751034653758,-846.42,0.00023835,2]
[368131976,1751034653767,-316.21,0.00023835,2]
[368131978,1751034653779,-427.92957751,0.00023835,2]
[368131981,1751034653794,-1535.38042249,0.00023835,2]
[368131983,1751034653803,-500.07189362,0.00023835,2]
[368131985,1751034653813,-857.96,0.00023835,2]
[368131987,1751034653823,-1204.39502055,0.00023835,2]
[368131989,1751034653834,-152.31497945,0.00023835,2]
[368131991,1751034653844,-460.0,0.00023835,2]
[368131993,1751034653853,-816.52,0.00023835,2]
[368131995,1751034653863,-302.70049638,0.00023835,2]
[368131997,1751034653874,-157.29950362,0.00023835,2]
[368131999,1751034653884,-1640.15,0.00023835,2]
[368132001,1751034653894,-474.85,0.00023835,2]
[368132003,1751034653903,-24.52400565,0.00023835,2]
[368132020,1751034654074,-460.0,0.00019178,2]
[368132022,1751034654084,-460.0,0.00019452,2]
[368132024,1751034654093,-460.0,0.00019726,2]
[368132026,1751034654103,-460.0,0.0002,2]
[368132028,1751034654112,-460.0,0.00020273,2]
[368132030,1751034654122,-460.0,0.00020547,2]
[368132032,1751034654131,-460.0,0.00020821,2]
[368132034,1751034654140,-460.0,0.00021095,2]
[368132036,1751034654150,-460.0,0.00021369,2]
[368132038,1751034654159,-460.0,0.00021643,2]
[368132040,1751034654169,-460.0,0.00021917,2]
[368132042,1751034654178,-460.0,0.00022191,2]
[368132044,1751034654187,-460.0,0.00022465,2]
[368132046,1751034654197,-460.0,0.00022739,2]
[368132048,1751034654207,-460.0,0.00023013,2]
[368132050,1751034654219,-435.47599435,0.00023835,2]
[368132052,1751034654229,-1671.8,0.00023835,2]
[368132054,1751034654238,-900.0,0.00023847,2]
[368132056,1751034654248,-215.0738,0.00023896,2]
[368132058,1751034654257,-530.15020565,0.000239,7]
[368132061,1751034654271,-7015.25468038,0.000239,7]
[368132063,1751034654280,-15671.62084681,0.000239,7]
[368132065,1751034654289,-151.67939453,0.000239,2]
[368132067,1751034654298,-1400.0,0.0002394,2]
[368132069,1751034654308,-1600.0,0.00023966,2]
[368132071,1751034654317,-150.0,0.00023973,2]
[368132073,1751034654327,-1400.0,0.00023977,2]
[368132075,1751034654336,-1189.0,0.00023982,2]
[368132076,1751034654345,-151.0,0.00023984,6]
[368132078,1751034654354,-3000.0,0.00023984,2]
[368132080,1751034654363,-2000.0,0.00024,2]
[368132082,1751034654372,-151.0,0.00024,10]
[368132084,1751034654382,-1157.17811006,0.00024,2]
[368132086,1751034654391,-2000.0,0.00024,2]
[368132088,1751034654400,-160.0,0.00024,7]
[368132090,1751034654409,-836.98798914,0.00024,7]
[368132092,1751034654419,-640.0,0.00024,2]
[368132094,1751034654428,-269.95456355,0.00024,9]
[368132096,1751034654436,-31159.62157819,0.00024,7]
[368132098,1751034654445,-25666.48338512,0.00024,2]
[368132105,1751034654501,-160.0,0.00023,3]
[368132107,1751034654510,-422.1211245,0.00023287,2]
[368132109,1751034654521,-37.8788755,0.00023287,2]
[368132111,1751034654531,-460.0,0.00023561,2]
[368132113,1751034654540,-251.86275426,0.00023835,2]
[368132115,1751034654555,-11270.71390056,0.00024,2]
[368132117,1751034654564,-234.11131208,0.00024,60]
[368132119,1751034654573,-1688.49699627,0.00024,2]
[368132121,1751034654583,-151.0,0.00024,14]
[368132123,1751034654592,-2728.79444712,0.00024,2]
[368137796,1751034985584,10000.0,0.000181,2]
[368137797,1751035029759,9842.023341,0.000181,2]
[368137798,1751035029781,157.976659,0.000181,2]
[368137800,1751035107529,10000.0,0.000181,2]
[368137802,1751035230807,318.2768055,0.00018092,2]
[368137803,1751035253210,5000.0,0.000181,2]
[368137804,1751035270243,1188.74268712,0.000181,2]
[368137805,1751035271792,1032.8034274,0.000222,69]
[368137806,1751035276767,1032.80342737,0.000222,69]
[368137807,1751035281756,1032.80342737,0.00022394,70]
[368137809,1751035340785,162.781146,0.00013699,2]
[368137810,1751035350705,3172.22270238,0.000181,2]
[368137811,1751035350728,6827.77729762,0.000181,2]
[368137812,1751035426110,171.31406248,0.000181,2]
[368137813,1751035639128,-222.0415251,0.00018502,2]
[368137814,1751035639150,-330.70575957,0.00018591,2]
[368137815,1751035639171,-154.59823055,0.00019067,2]
[368137816,1751035639191,-221.46348234,0.00019078,3]
[368137817,1751035639213,-98.50216559,0.00019164,2]
[368137818,1751035643111,-24900.0,0.00018143,2]
[368137819,1751035643134,-201.49783441,0.00019164,2]
[368137820,1751035643155,-1023.0,0.00019165,2]
[368137821,1751035643175,-300.0,0.00019165,2]
[368137822,1751035643195,-388.25014556,0.00019165,2]
[368137823,1751035646086,-811.74985444,0.00019165,2]
[368137824,1751035646106,-645.27881597,0.00019166,2]
[368137826,1751035722052,413.12137098,0.000222,69]
[368137827,1751035727058,413.12137094,0.000222,69]
[368137828,1751035732024,413.12137094,0.00022397,70]
[368137829,1751035751179,-9739.33214833,0.0001849,2]
[368137830,1751035781489,442.854915,0.00018075,2]
[368137892,1751035832244,-260.66785167,0.0001849,2]
[368137894,1751035832253,-198.42345574,0.00018603,2]
[368137895,1751035832262,-150.0,0.000189,2]
[368137898,1751035832271,-161.25884639,0.00019067,2]
[368137900,1751035832280,-187.60464592,0.00019165,2]
[368137902,1751035832291,-112.39535408,0.00019165,2]
[368137904,1751035832301,-603.0,0.00019165,2]
[368137906,1751035832310,-8758.53725701,0.00019166,2]
[368137986,1751035838493,-611.556,0.00019166,2]
[368137990,1751035838521,-25857.55280541,0.00019166,2]
[368137992,1751035838530,-151.0,0.00019166,2]
[368137994,1751035838540,-460.89159883,0.00019178,2]
[368137996,1751035838549,-501.41690487,0.00019178,2]
[368137998,1751035838560,-460.72623371,0.00019178,2]
[368138000,1751035838569,-461.1840628,0.00019178,2]
[368138002,1751035838710,-460.0,0.00019178,2]
[368138003,1751035838720,-460.0,0.00019178,2]
[368138004,1751035838730,-460.0,0.00019178,2]
[368138005,1751035838740,-460.0,0.00019178,2]
[368138006,1751035838750,-460.0,0.00019178,2]
[368138008,1751035838760,-36.89979704,0.00019178,2]
[368138009,1751035838773,-423.10020296,0.00019178,2]
[368138010,1751035838783,-460.0,0.00019178,2]
[368138011,1751035838792,-460.0,0.00019178,2]
[368138012,1751035838801,-460.0,0.00019178,2]
[368138013,1751035838812,-461.75892076,0.00019178,2]
[368138014,1751035838822,-460.0,0.00019178,2]
[368138015,1751035838832,-313.18317917,0.00019178,2]
[368138016,1751035838841,-460.0,0.00019178,2]
[368138017,1751035838850,-460.0,0.00019178,2]
[368138018,1751035838859,-460.0,0.00019178,2]
[368138019,1751035838868,-460.0,0.00019178,2]
[368138020,1751035838878,-460.0,0.00019178,2]
[368138021,1751035838888,-460.0,0.00019178,2]
[368138022,1751035838897,-460.0,0.00019178,2]
[368138023,1751035838907,-460.0,0.00019178,2]
[368138024,1751035838916,-460.0,0.00019178,2]
[368138025,1751035838926,-460.0,0.00019178,2]
[368138026,1751035838935,-460.0,0.00019178,2]
[368138027,1751035838945,-460.0,0.00019178,2]
[368138028,1751035838954,-460.0,0.00019178,2]
[368138029,1751035838963,-460.0,0.00019178,2]
[368138030,1751035838976,-460.0,0.00019178,2]
[368138031,1751035838986,-460.0,0.00019178,2]
[368138032,1751035838995,-460.0,0.00019178,2]
[368138033,1751035839004,-460.0,0.00019178,2]
[368138034,1751035839014,-460.0,0.00019178,2]
[368138035,1751035839023,-460.0,0.00019178,2]
[368138036,1751035839033,-460.0,0.00019178,2]
[368138037,1751035839042,-363.58,0.00019178,2]
[368138038,1751035839054,-460.0,0.00019178,2]
[368138039,1751035839063,-460.0,0.00019178,2]
[368138040,1751035839073,-460.0,0.00019178,2]
[368138041,1751035839083,-460.0,0.00019178,2]
[368138042,1751035839092,-460.0,0.00019178,2]
[368138043,1751035839101,-377.43223011,0.00019178,2]
[368138044,1751035839110,-460.0,0.00019178,2]
[368138045,1751035839119,-460.0,0.00019178,2]
[368138046,1751035839129,-460.0,0.00019178,2]
[368138047,1751035839138,-460.0,0.00019178,2]
[368138048,1751035839148,-460.0,0.00019178,2]
[368138049,1751035839157,-460.0,0.00019178,2]
[368138050,1751035839166,-285.26134269,0.00019178,2]
[368138051,1751035839175,-460.0,0.00019178,2]
[368138052,1751035839184,-500.0,0.00019178,2]
[368138053,1751035839193,-500.0,0.00019178,2]
[368138054,1751035839203,-460.0,0.00019178,2]
[368138055,1751035839211,-500.0,0.00019178,2]
[368138056,1751035839221,-460.0,0.00019178,2]
[368138057,1751035839231,-460.0,0.00019178,2]
[368138058,1751035839242,-460.0,0.00019178,2]
[368138059,1751035839252,-500.0,0.00019178,2]
[368138060,1751035839261,-460.0,0.00019178,2]
[368138061,1751035839270,-460.0,0.00019178,2]
[368138062,1751035839280,-460.0,0.00019178,2]
[368138063,1751035839289,-460.0,0.00019178,2]
[368138064,1751035839298,-460.0,0.00019178,2]
[368138065,1751035839310,-460.0,0.00019178,2]
[368138066,1751035839319,-460.0,0.00019178,2]
[368138067,1751035839330,-488.07,0.00019178,2]
[368138068,1751035839339,-485.73,0.00019178,2]
[368138070,1751035839349,-460.0,0.00019178,2]
[368138072,1751035839359,-500.0,0.00019178,2]
[368138074,1751035839369,-473.95,0.00019178,2]
[368138076,1751035839378,-501.03902153,0.00019178,2]
[368138078,1751035839388,-487.31,0.00019178,2]
[368138080,1751035839397,-460.0,0.00019178,2]
[368138082,1751035839407,-460.0,0.00019178,2]
[368138084,1751035839417,-460.0,0.00019178,2]
[368138086,1751035839427,-460.0,0.00019178,2]
[368138088,1751035839437,-237.37171201,0.00019178,2]
[368138090,1751035839446,-2361.69,0.00019178,2]
[368138092,1751035839455,-460.0,0.00019178,2]
[368138094,1751035839465,-460.0,0.00019178,2]
[368138096,1751035839475,-460.0,0.00019178,2]
[368138098,1751035839484,-460.0,0.00019178,2]
[368138100,1751035839494,-460.0,0.00019178,2]
[368138101,1751035839503,-500.0,0.00019178,2]
[368138102,1751035839513,-460.0,0.00019178,2]
[368138103,1751035839522,-460.0,0.00019178,2]
[368138104,1751035839531,-460.0,0.00019178,2]
[368138105,1751035839540,-657.38,0.00019178,2]
[368138106,1751035839549,-460.0,0.00019178,2]
[368138107,1751035839559,-460.0,0.00019178,2]
[368138108,1751035839568,-460.0,0.00019178,2]
[368138109,1751035839577,-460.0,0.00019178,2]
[368138110,1751035839586,-460.0,0.00019178,2]
[368138111,1751035839595,-520.57,0.00019178,2]
[368138112,1751035839604,-460.0,0.00019178,2]
[368138113,1751035839613,-460.0,0.00019178,2]
[368138115,1751035839622,-460.0,0.00019178,2]
[368138116,1751035839631,-460.0,0.00019178,2]
[368138119,1751035839640,-460.0,0.00019178,2]
[368138121,1751035839650,-460.0,0.00019178,2]
[368138123,1751035839659,-500.0,0.00019178,2]
[368138125,1751035839668,-460.0,0.00019178,2]
[368138127,1751035839677,-151.0,0.00019178,2]
[368138129,1751035839687,-151.0999679,0.00019178,2]
[368138131,1751035839696,-460.0,0.00019178,2]
[368138133,1751035839706,-460.0,0.00019178,2]
[368138135,1751035839715,-151.0,0.00019178,2]
[368138137,1751035839724,-151.0,0.00019178,2]
[368138139,1751035839733,-151.0,0.00019178,2]
[368138141,1751035839743,-460.0,0.00019178,2]
[368138143,1751035839752,-151.0,0.00019178,2]
[368138145,1751035839761,-660.65,0.00019178,2]
[368138147,1751035839771,-460.0,0.00019178,2]
[368138149,1751035839780,-151.0,0.00019178,2]
[368138151,1751035839790,-460.0,0.00019178,2]
[368138154,1751035839799,-460.0,0.00019178,2]
[368138156,1751035839809,-460.0,0.00019178,2]
[368138157,1751035839819,-460.0,0.00019178,2]
[368138158,1751035839828,-500.0,0.00019178,2]
[368138159,1751035839838,-460.0,0.00019178,2]
[368138160,1751035839847,-460.0,0.00019178,2]
[368138161,1751035839856,-500.0,0.00019178,2]
[368138162,1751035839866,-1113.88,0.00019178,2]
[368138163,1751035839876,-460.0,0.00019178,2]
[368138164,1751035839884,-460.0,0.00019178,2]
[368138165,1751035839893,-460.0,0.00019178,2]
[368138167,1751035839902,-509.06,0.00019178,2]
[368138168,1751035839911,-460.0,0.00019178,2]
[368138170,1751035839920,-460.0,0.00019178,2]
[368138172,1751035839929,-500.0,0.00019178,2]
[368138174,1751035839939,-460.0,0.00019178,2]
[368138176,1751035839948,-460.0,0.00019178,2]
[368138178,1751035839956,-436.94,0.00019178,2]
[368138180,1751035839967,-460.0,0.00019178,2]
[368138183,1751035839978,-1647.85,0.00019178,2]
[368138185,1751035839987,-460.0,0.00019178,2]
[368138186,1751035839997,-1196.89,0.00019178,2]
[368138188,1751035840006,-500.0,0.00019178,2]
[368138189,1751035840015,-460.0,0.00019178,2]
[368138191,1751035840024,-460.0,0.00019178,2]
[368138193,1751035840034,-1436.65,0.00019178,2]
[368138195,1751035840043,-500.0,0.00019178,2]
[368138197,1751035840052,-500.0,0.00019178,2]
[368138199,1751035840063,-460.0,0.00019178,2]
[368138201,1751035840072,-500.0,0.00019178,2]
[368138203,1751035840082,-151.0,0.00019178,2]
[368138205,1751035840091,-410.26974302,0.00019178,2]
[368138207,1751035840100,-151.0,0.00019178,2]
[368138209,1751035840109,-460.0,0.00019178,2]
[368138211,1751035840119,-2430.69,0.00019178,2]